Cogmind - Beta 16 @@@ ROGUE MODE // 2025.11.23 @ 04:57:11 Player: Peregrine Result: Self-destructed Performance ------------- Evolutions (2) 1000 Regions Visited (3) 600 Robots Destroyed (73) 365 Value Destroyed (1924) 1924 Prototype IDs (2) 40 Alien Tech Used (0) 0 Bonus (159) 159 TOTAL SCORE: 4088 Bonus ------- High Alert Combat Kills 152 Follower Combat Kills 7 Cogmind --------- Core Integrity 186/550 Matter 223/300 Energy 23/100 System Corruption 0% Temperature Cool (9) Movement Core (50) Location -8/Materials Parts ------- > --- POWER (1) -------- (None) > --- PROPULSION (2) --- (None) > --- UTILITY (5) ------ Cooling System Advanced Targeting Computer Advanced Targeting Computer > --- WEAPON (3) ------- (None) > --- INVENTORY (5) ---- Core Shielding Peak State ------------ > --- POWER ------------ Improved Ion Engine > --- PROPULSION ------- Armored Wheel Armored Wheel > --- UTILITY ---------- Large Storage Unit Advanced Weight Redist. System Advanced Targeting Computer Advanced Targeting Computer Hardened Light Armor Plating > --- WEAPON ----------- Improved EM Shotgun Flak Cannon Flak Cannon > --- INVENTORY -------- Improved Ion Engine Wheel Heat Sink Cooling System Medium Matter Pod Advanced Weight Redist. System Core Shielding Hardened Light Armor Plating Shock Bomb Launcher Improved Datajack Scythe Scythe Scythe Scythe [Rating: 30] Favorites ----------- Power Ion Engine Engine Ion Engine Power Core Light Nuclear Core Propulsion Armored Wheel Treads Light Treads Leg Aluminum Leg Wheel Armored Wheel Utility Hardened Light Armor Plating Device Advanced Weight Redist. System Storage Large Storage Unit Processor Advanced Targeting Computer Protection Hardened Light Armor Plating Weapon Improved EM Shotgun Energy Gun Improved EM Shotgun Energy Cannon EM Pulse Cannon Ballistic Gun Assault Rifle Ballistic Cannon Flak Cannon Launcher Grenade Launcher Slashing Weapon Scythe Build | -11 -10 -9 -8 ------- Run | Yrd Mat Mat Mat Slots Evolved 4 | . . 2 2 Power . | . . . . Propulsion . | . . . . Utility 3 | . . 2 1 Weapon 1 | . . . 1 Parts Attached 44 | . 5 24 15 Power 6 | . 1 4 1 Engine 5 | . . 4 1 Core 1 | . 1 . . Reactor . | . . . . Propulsion 8 | . 1 4 3 Treads 1 | . . . 1 Leg 1 | . 1 . . Wheel 6 | . . 4 2 Hover . | . . . . Flight . | . . . . Utility 17 | . 1 11 5 Device 8 | . . 5 3 Storage 3 | . 1 2 . Processor 3 | . . 1 2 Hackware . | . . . . Protection 3 | . . 3 . Artifact . | . . . . Weapon 13 | . 2 5 6 Energy Gun 4 | . . 4 . Energy Cannon 1 | . . . 1 Ballistic Gun 1 | . . 1 . Ballistic Cannon 2 | . . . 2 Launcher 3 | . 2 . 1 Special Weapon . | . . . . Impact Weapon . | . . . . Slashing Weapon 2 | . . . 2 Piercing Weapon . | . . . . Special Melee Weapon . | . . . . Unidentified Prototypes 2 | . . 2 . Parts Lost 18 | . . 3 15 Power 3 | . . 1 2 Propulsion 3 | . . 1 2 Utility 4 | . . 1 3 Weapon 8 | . . . 8 Highest Loss Streak 13 | . . 2 13 To Critical Strikes . | . . . . Average Backups 10 | 6 7 10 12 Power . | 1 1 . . Propulsion 1 | 4 3 1 1 Utility 2 | . . 2 5 Weapon 4 | 1 2 5 4 Tool/Special . | . . . . Unused Backups 27 | . 10 9 8 Power 2 | . 2 . . Propulsion 7 | . 4 2 1 Utility 4 | . 1 . 3 Weapon 11 | . 2 6 3 Tool/Special 3 | . 1 1 1 Average Slot Usage (%) 89 | . 85 91 89 Engine 8 | . 7 9 8 Core 1 | . 6 1 . Leg 7 | . 28 3 . Wheel 13 | . . 18 15 Device 10 | . . 17 9 Storage 10 | . 14 11 8 Processor 7 | . . 5 12 Protection 5 | . . 2 11 Energy Gun 14 | . 14 20 7 Energy Cannon 1 | . . . 2 Ballistic Gun 1 | . 7 . . Ballistic Cannon 4 | . . . 10 Launcher 2 | . 6 1 . Peak Build Rating 30 | 6 8 22 30 Average Rating 17 | 6 6 15 26 On Entrance 10 | 6 6 8 22 Avg Prop Armor Cover (%) . | . . . . Naked Turns . | . . . . Heaviest Build 52 | 13 19 43 52 Greatest Support 33 | 20 20 33 33 Greatest Overweight (x) 3 | . . 1 3 Average Overweight (x) . | . . . . Largest Inventory Capacity 15 | 8 10 15 15 Average Capacity 12 | 8 9 11 14 Most Carried 15 | 6 10 15 15 Average Carried 10 | 6 7 10 12 Final Capacity 15 | 8 10 15 5 Final Carried 13 | 6 9 13 1 Class Distribution -------------------- 73% | Mutant 10% | Scavenger-Mutant 8% | Tank 7% | Gunner Dominant Class ---------------- Mutant | -10/Materials Mutant | -9/Materials Mutant | -8/Materials Resources | -11 -10 -9 -8 ----------- Run | Yrd Mat Mat Mat Matter Collected 1293 | 200 204 353 536 Remotely . | . . . . Salvage Created 2261 | . 313 917 1031 Parts 126 | . 20 56 50 Haulers Intercepted 6 | . 2 2 2 Recyclers Shooed 1 | . . 1 . Parts Field Recycled . | . . . . Retrieved Matter . | . . . . Parts Self-Destructed . | . . . . Prevented . | . . . . Parts Restored . | . . . . Kills | -11 -10 -9 -8 ------- Run | Yrd Mat Mat Mat Combat Hostiles Destroyed 57 | . 7 27 23 Melee 2 | . . . 2 Guns 32 | . 2 22 8 Cannons 8 | . . . 8 AOE 15 | . 5 5 5 Classes Destroyed 10 | . 4 5 1 Worker 3 | . 1 2 . Builder 1 | . . . 1 Hauler 6 | . 2 2 2 Recycler 1 | . . 1 . Mechanic 1 | . . 1 . Operator 2 | . 1 . 1 Watcher 2 | . . 1 1 Swarmer 20 | . . 14 6 Grunt 27 | . 7 7 13 Sentry 10 | . . 6 4 Best Kill Streak 5 | . 3 5 5 Combat Bots Only 5 | . 3 5 4 Max Kills in Single Turn 2 | . 2 2 2 Gunslinging 1 | . . 1 . Exploded 2 | . 2 1 2 Melee 1 | . . . 1 Uniques/NPCs Destroyed . | . . . . Combat | -11 -10 -9 -8 -------- Run | Yrd Mat Mat Mat Hostile Shots Fired 274 | . 16 102 156 Missed 75 | . 4 26 45 Hits 199 | . 12 76 111 Projectile 199 | . 12 76 111 Critical Strikes 7 | . 1 1 5 Damage Taken 3083 | . 228 906 1949 Core 561 | . 17 180 364 Absorbed by Shields . | . . . . Regen/Repaired (Parts) 227 | . . 17 210 Core Remaining (%) 82 | 100 93 55 . Volleys Fired 122 | . 29 50 43 Largest 3 | . 2 2 3 Hottest 137 | . 60 130 137 Shots Fired 246 | . 47 91 108 Gun 154 | . 37 82 35 Cannon 71 | . . . 71 Launcher 21 | . 10 9 2 Special . | . . . . Kinetic 81 | . 19 . 62 Thermal 62 | . 18 44 . Explosive 19 | . 10 9 . Electromagnetic 84 | . . 38 46 Robot Hit Streak 17 | . 11 16 17 Robot Miss Streak 7 | . 6 7 5 Penetration Max . | . . . . Secondary Targets 3 | . . 3 . Max Gunslinging Chain 1 | . . 1 . Shots Hit Robots 176 | . 24 66 86 Core Hits 193 | . 22 86 85 Critical Kills . | . . . . Critical Parts Destroyed . | . . . . Critical Strikes . | . . . . Melee Attacks 9 | . . . 9 Impact . | . . . . Slashing 9 | . . . 9 Piercing . | . . . . Sneak Attacks . | . . . . Combat Hostiles . | . . . . Follow-up Attacks . | . . . . Damage Inflicted 4412 | . 662 1627 2123 Guns 1774 | . 248 984 542 Cannons 1103 | . . . 1103 Explosions 1403 | . 414 643 346 Melee 122 | . . . 122 Ramming 10 | . . . 10 Kinetic 1078 | . 137 . 941 Thermal 890 | . 111 590 189 Explosive 976 | . 414 562 . Electromagnetic 1336 | . . 475 861 Impact . | . . . . Slashing 122 | . . . 122 Piercing . | . . . . Highest Corruption 2 | . . 2 . Average Corruption 2 | . . 2 . Corruption Purged . | . . . . Corruption Blocked . | . . . . Effects 2 | . . 2 . Message Errors 1 | . . 1 . Parts Rejected 1 | . . 1 . Overload Shots . | . . . . Overflow Damage 15 | . . 4 11 Projectiles 3 | . . . 3 Explosions 12 | . . 4 8 Melee . | . . . . Knockbacks 13 | . . . 13 Impact . | . . . . Kinetic 12 | . . . 12 Secondary 1 | . . . 1 Self-Inflicted Damage 223 | . 78 26 119 Shots 7 | . 4 1 2 Rammed 1 | . . . 1 Targets Rammed 1 | . . . 1 Kicked . | . . . . Crushed . | . . . . Highest Temperature 309 | . 22 138 309 Average Temperature 93 | . 10 33 114 Received Heat Transfer 915 | . 102 246 567 Effects 3 | . . . 3 Interference 3 | . . . 3 Siege Activations . | . . . . Martial Activations . | . . . . Shielding Activations . | . . . . Robots Disrupted 1 | . . 1 . Combat Hostiles 1 | . . 1 . Robots Corrupted . | . . . . Combat Hostiles . | . . . . Parts Fried 2 | . . 2 . Impact Corruptions . | . . . . Robots Melted . | . . . . Combat Hostiles . | . . . . Parts Melted . | . . . . Heat Transferred 1175 | . 250 725 200 Parts Sabotaged . | . . . . Parts Stolen . | . . . . Parts Stripped . | . . . . Power Chain Reactions 4 | . . 2 2 Alert | -11 -10 -9 -8 ------- Run | Yrd Mat Mat Mat Maximum Alert Level 2 | . . 2 2 Low Security (%) 27 | 100 100 15 . Level 1 37 | . . 46 48 Level 2 35 | . . 38 51 Level 3 . | . . . . Level 4 . | . . . . Level 5 . | . . . . High Security . | . . . . Max Security . | . . . . Peak Influence 587 | . 168 587 559 Initial 237 | . . 62 237 Average 310 | . 61 367 385 Influence Increases 1882 | . 303 869 710 Destroy 0b10 Robot/C 1160 | . 140 560 460 Destroy 0b10 Robot/NC 80 | . 20 35 25 Destroy Leader 276 | . 34 136 106 Allied During Kill 1 | . . 1 . Successful Hack 24 | . 16 5 3 Disable Machine 45 | . 15 15 15 Destroy Structure 116 | . 63 42 11 Lose Combat Pursuer 180 | . 15 75 90 Influence Decreases 1395 | . 155 454 786 Entered New Map 412 | . . 86 326 Time Decay 783 | . 155 318 310 Lost Part 180 | . . 30 150 Lost Ally 20 | . . 20 . Squads Dispatched 7 | . 2 2 3 Investigation 2 | . 1 1 . Extermination . | . . . . Reinforcement 4 | . 1 1 2 Assault . | . . . . Garrison 1 | . . . 1 Intercept . | . . . . Searches Triggered . | . . . . Construction Impeded 1 | . . 1 . Haulers Reinforced . | . . . . Active Scanning Responses . | . . . . Cargo Convoy Interrupts . | . . . . Stealth | -11 -10 -9 -8 --------- Run | Yrd Mat Mat Mat Distress Signals 4 | . 1 1 2 Communications Jammed . | . . . . Distress Signals . | . . . . Times Spotted 80 | . 12 36 32 Peak Tracking Total 7 | . 3 7 5 Tactical Retreats 8 | . 1 4 3 Traps | -11 -10 -9 -8 ------- Run | Yrd Mat Mat Mat Traps Triggered 2 | . . 2 . Indirectly . | . . . . Trap Hack Attempts . | . . . . Triggered . | . . . . Disarmed . | . . . . Reprogrammed . | . . . . Reused . | . . . . Traps Extracted . | . . . . Installed . | . . . . Triggered . | . . . . Machines | -11 -10 -9 -8 ---------- Run | Yrd Mat Mat Mat Machines Disabled 3 | . 1 1 1 Max in Single Turn 1 | . 1 1 1 Machines Repaired . | . . . . Machines Dismantled . | . . . . Machines Sabotaged . | . . . . Overloaded Fab Kills . | . . . . Hacking | -11 -10 -9 -8 --------- Run | Yrd Mat Mat Mat Machines Accessed 9 | . 5 3 1 Terminals 6 | . 5 1 . Fabricators . | . . . . Repair Stations 2 | . . 1 1 Recycling Units . | . . . . Scanalyzers 1 | . . 1 . Garrison Access . | . . . . Total Hacks 27 | . 15 8 4 Successful 14 | . 4 6 4 Failed 13 | . 11 2 . Catastrophic 4 | . 3 1 . Database Lockouts . | . . . . Manual 15 | . 15 . . Terminals 18 | . 15 3 . Fabricators . | . . . . Repair Stations 6 | . . 2 4 Recycling Units . | . . . . Scanalyzers 3 | . . 3 . Garrison Access . | . . . . Terminal Hacks 2 | . 1 1 . Branch Access Points 1 | . . 1 . Scanalyzer Index 1 | . 1 . . Fabricator Hacks . | . . . . Repair Station Hacks 6 | . . 2 4 Scan Component 3 | . . 1 2 Repair 3 | . . 1 2 Recycling Unit Hacks . | . . . . Scanalyzer 3 | . . 3 . Insert Component 1 | . . 1 . Analyze 1 | . . 1 . Retrieve Study 1 | . . 1 . Garrison Access Hacks . | . . . . Unauthorized Hacks 3 | . 3 . . Terminals 3 | . 3 . . Botnet 3 | . 3 . . Fabricators . | . . . . Repair Stations . | . . . . Recycling Units . | . . . . Scanalyzers . | . . . . Garrison Access . | . . . . Data Cores Recovered . | . . . . Used . | . . . . Hacking Detections 8 | . 5 2 1 Full Trace Events 2 | . 1 1 . Feedback Events . | . . . . Feedback Blocked . | . . . . Robot Schematics Acquired . | . . . . Robots Built . | . . . . Authchips . | . . . . Time . | . . . . Total Robot Build Rating . | . . . . Part Schematics Acquired 1 | . . 1 . Parts Built . | . . . . Authchips . | . . . . Time . | . . . . Total Part Build Rating . | . . . . Part Studies Acquired . | . . . . Parts Repaired 3 | . . 1 2 Time 96 | . . 26 70 Parts Recycled . | . . . . Recycled Matter . | . . . . Retrieved Matter . | . . . . Retrieved Components . | . . . . Parts Scanalyzed 1 | . . 1 . Part Schematics Acquired 1 | . . 1 . Parts Damaged . | . . . . Bothacking | -11 -10 -9 -8 ------------ Run | Yrd Mat Mat Mat Used RIF Installer . | . . . . Robots Hacked . | . . . . Non-combat . | . . . . Combat . | . . . . Robot Hacks Applied . | . . . . Relay Couplers Released . | . . . . Fabnet Peak Effective % . | . . . . Robots Rewired 1 | . . 1 . Allies Hacked . | . . . . Hacks Repelled . | . . . . Allies | -11 -10 -9 -8 -------- Run | Yrd Mat Mat Mat Total Allies 1 | . . 1 . Largest Group 1 | . . 1 . Highest-Rated Group 15 | . . 15 . Highest-Rated Ally 15 | . . 15 . Total Orders . | . . . . Ally Attacks 1 | . . 1 . Total Damage 30 | . . 30 . Kills 1 | . . 1 . Allies Corrupted . | . . . . Allies Melted . | . . . . Intel | -11 -10 -9 -8 ------- Run | Yrd Mat Mat Mat Active Infowar (turns) 428 | . . 369 59 Sensors 59 | . . . 59 Machine Analysis 369 | . . 369 . Robot Analysis Total . | . . . . Derelict Logs Recovered . | . . . . Drone Launches . | . . . . Drone Recoveries . | . . . . Exploration | -11 -10 -9 -8 ------------- Run | Yrd Mat Mat Mat Turns Passed 1776 | 10 361 718 687 Spaces Moved 924 | 9 212 413 290 Core 13 | . . . 13 Treads 10 | . . . 10 Legs 272 | 9 212 51 . Wheels 629 | . . 362 267 Hover . | . . . . Flight . | . . . . Fastest Speed 50 | 120 120 90 50 Average Speed 105 | 120 120 98 105 Slowest Speed 200 | 120 120 190 200 Overloaded Moves . | . . . . Propulsion Burnouts . | . . . . Robots Hopped . | . . . . Potential Cave-ins . | . . . . Cave-ins Triggered . | . . . . Exploration Rate (%) 30 | 2 46 46 28 Regions Visited 3 Branch Regions . Pre-discovered Areas . | . . . . Known Exits Taken . | . . . . Unknown Exits Taken 3 | 1 1 1 . Scrap Searched . | . . . . Spaces Dug . | . . . . Terrain Destroyed 125 | . 68 47 10 Melee . | . . . . Projectile . | . . . . AOE 125 | . 68 47 10 Terrain Rammed . | . . . . Walls Destroyed . | . . . . Machines Disabled . | . . . . Actions | -11 -10 -9 -8 --------- Run | Yrd Mat Mat Mat Total 1491 | 8 274 641 568 Wait 285 | . 10 90 185 Move 921 | 8 211 412 290 Hop . | . . . . Pick Up 53 | . 10 32 11 Fast Attach 7 | . 1 2 4 Attach 23 | . . 9 14 Detach . | . . . . Swap 23 | . 4 16 3 Drop 43 | . 9 26 8 Fire 122 | . 29 50 43 Melee 9 | . . . 9 Ram 1 | . . . 1 Kick . | . . . . Crush . | . . . . Escape Stasis . | . . . . Rewire 4 | . . 4 . Trap . | . . . . Miscellaneous . | . . . . Route ------- -11/Scrapyard -10/Materials (discovered 2 exits: *Mat / [*Min]) -9/Materials (discovered 2 exits: *Mat / *Min) -8/Materials (discovered 1 exit: [*Fac]) History --------- Turn | Location | Event 1 | -11/Scrapyard | Discovered new exit (range 2) 11 | -11/Scrapyard | Entered Materials 116 | -10/Materials | Discovered new exit (range 16) 310 | -10/Materials | Discovered new exit (range 14) 317 | -10/Materials | Build established: Mutant 372 | -10/Materials | Entered another Materials area 372 | -9/Materials | Evolved 2 slots: Utility x2 793 | -9/Materials | Discovered new exit (range 15) 857 | -9/Materials | Repaired Lgt. Armor Plating 1035 | -9/Materials | Discovered new exit (range 16) 1084 | -9/Materials | Identified exit to Mines 1090 | -9/Materials | Entered another Materials area 1090 | -8/Materials | Evolved 2 slots: Utility x1, Weapon x1 1570 | -8/Materials | Repaired Flak Cannon 1603 | -8/Materials | Repaired Arm. Wheel 1670 | -8/Materials | Discovered new exit (range 16) 1687 | -8/Materials | Garrison activated, responded to threat 1742 | -8/Materials | Core integrity fell below 50% 1777 | -8/Materials | Self-destructed Last Messages --------------- 01713_ G-47 Trooper misfires. 01714_ EM Pulse Cannon destroyed. 01716_ Dropped Lrg. Storage Unit. 01716_ Acquired 14 matter. 01718_ Hrd. Light Armor Plating destroyed. 01718_ Critical hit (Burn: +37). 01720_ G-47 Trooper destroyed. 01721_ Penetrated by Slug. 01721_ Imp. Ion Engine destroyed. 01722_ Acquired 4 matter. 01726_ Acquired Lgt. Treads. 01732_ Dropped Adv. Weight Redist. System. 01735_ Critical hit (Burn: +37). 01746_ Adv. Weight Redist. System destroyed. 01748_ Electrolysis Chamber disabled. 01754_ Scythe destroyed. 01764_ S-10 Pest destroyed. 01772_ G-47 Trooper destroyed. 01776_ Lgt. Treads destroyed. 01777_ Scythe destroyed. Map ----- +----------------------------------------------------+ | ?????????????????????#T ?# # #????? | | ?????????????????????#" [[ # # ! #????? | | ?????????????????????# [[ # ##+########????? | | ?????????????????????# """" + %[######??????? | | ?????????????????????# "" # ! ! | | ?????????????????????# # ##########?????? | | ?????????????????????# + #??????????????? | | ?????????????????????###### ####+#####???????????? | | ??????????????????????????### #???????????? | | ????????????????????????????# #???????????? | | ????????????????????????????# #???????????? | | ????????????????????????????# #???????????? | | ????????????????????????????# ] #???????????? | | ????????????????????????????# #???????????? | | ????????????????????????????# #???????????? | | ????????????????????????????# [ #???????????? | | ????????????????????????????# #???????????? | | ????????????????????????????####+#####???????????? | | ?????????????????##########????# #???????????????? | | ?????????????????# [ #????# #???????????????? | | ?????????????????# "" #????# #???????????????? | | ?????????????????# """ #????# #???????????????? | | ?????????????????# "" #????# #???????????????? | | ?????????????????# =###### ##########??????? | | ?????????????????# " " =%+= #??????? | | ?????????????????# "R" Y@############### #??????? | | ?????????????????# """ #?????????????# #??????? | | ?????????? ??????# ! #######???????# ######## | | ????????? #########g## #?????### %= [% | | ????????? % #######!! =%%=%! | | ????????? // =!%/ =% ! | | ????????? k ###########"# #### | | ??????????##############+## #????????????????? | | ????????????# ###+#####??????????????? | | ????????????# # #??????????????? | | ????????????# # #??????????????? | | ????????????# " """"" # """ #??????????????? | | ????????????# """"""""" # """ #??????????????? | | ????????????? ?""" """ # = """ #??????????????? | | ????????????????###################??????????????? | | | | | | | | | | | | | | | | | | | | | +----------------------------------------------------+ Best States ------------- Heat Dissipation 53 Energy Generation 14 Energy Capacity 265 Matter Stores 300 Matter Capacity 300 Sight Range 16 Robot Scan Range 15 Terrain Scan Density 10 Additional Mass Support 9 Armor Coverage 300 Evasion (%) 55 Targeting Accuracy 16 Recoil Reduction 1 Item Schematics ----------------- Lrg. Storage Unit | -9/Materials | Scanalyzed Robot Schematics ------------------ None Fabricated ------------ Nothing Repaired ---------- Lgt. Armor Plating | 81% | -9/Materials Flak Cannon | 8% | -8/Materials Arm. Wheel | 27% | -8/Materials Studied --------- None Alien Tech Used ----------------- None Achievements -------------- Bumper Bots DATA ERROR: Steam Global Achievement% For Emergencies Only Organ Harvest Resistances Are Futile There's More Where That Came From Challenges ------------ None Game ------ Seed GyrokineticFireSubcomponent Manual? 0 Play Time 00:31:21 Cumulative 135.7 hours Start 2025.11.22 @ 19:47:22 End 2025.11.23 @ 04:57:11 Sessions 3 Manual Loads 0 Difficulty Rogue Special Mode None Game No. 165 Rogue 150 Adventurer 15 Explorer 0 Win Type - Total 6 Types 3/0/2/0/0/0/1/0/0/0 Lore% 43 Gallery% 65 Achievement% 34 Wizard Run 0 Options --------- Layout 0 ASCII 0 Keyboard 0 Movement Mouse Keybinds 0 Fullscreen 2 Font 36/Smallcaps Map View 76x50 Zoom Use 0% Tactical HUD 1 Map Filters NONE Filters NONE Steam 1 RUN: 88b29008-8677-4c5e-9412-8eb3bfeb4671